Cogmind - Beta 16 @@@ ROGUE MODE // 2026.02.03 @ 11:03:29 Player: mule Result: Destroyed by Y-45 Defender with Heavy Assault Rifle Performance ------------- Evolutions (1) 500 Regions Visited (3) 600 Robots Destroyed (21) 105 Value Destroyed (581) 581 Prototype IDs (4) 80 Alien Tech Used (0) 0 Bonus (0) 0 TOTAL SCORE: 1866 Bonus ------- None Cogmind --------- Core Integrity 0/400 Matter 266/300 Energy 306/415 System Corruption 0% Temperature Cool (57) Movement Walking (120) Location -9/Storage Parts ------- > --- POWER (2) -------- Ion Engine Improved Ion Engine > --- PROPULSION (3) --- Aluminum Leg Aluminum Leg > --- UTILITY (2) ------ Small Storage Unit Weight Redist. System > --- WEAPON (2) ------- Advanced Beam Cannon Improved Assault Rifle > --- INVENTORY (8) ---- Light Ion Engine Aluminum Leg Heat Sink Heat Sink Advanced Beam Cannon Peak State ------------ > --- POWER ------------ Improved Ion Engine Cooled Ion Engine > --- PROPULSION ------- Aluminum Leg Aluminum Leg Aluminum Leg > --- UTILITY ---------- Small Storage Unit > --- WEAPON ----------- Advanced Beam Cannon Improved Assault Rifle > --- INVENTORY -------- Ion Engine Light Ion Engine Heat Sink Heat Sink Beam Rifle Improved Assault Rifle Grenade Launcher Grenade Launcher [Rating: 16] Favorites ----------- Power Ion Engine Engine Ion Engine Propulsion Aluminum Leg Leg Aluminum Leg Utility Small Storage Unit Device Weight Redist. System Storage Small Storage Unit Protection Light Armor Plating Weapon Improved Assault Rifle Energy Gun Beam Rifle Energy Cannon Advanced Beam Cannon Ballistic Gun Improved Assault Rifle Launcher Grenade Launcher Build | -11 -10 -9 -9 ------- Run | Yrd Mat Mat Sto Slots Evolved 2 | . . 2 . Power 1 | . . 1 . Propulsion 1 | . . 1 . Utility . | . . . . Weapon . | . . . . Parts Attached 33 | 6 1 24 2 Power 8 | 1 . 6 1 Engine 8 | 1 . 6 1 Core . | . . . . Reactor . | . . . . Propulsion 7 | 2 . 4 1 Treads . | . . . . Leg 7 | 2 . 4 1 Wheel . | . . . . Hover . | . . . . Flight . | . . . . Utility 4 | 1 . 3 . Device 2 | . . 2 . Storage 1 | 1 . . . Processor . | . . . . Hackware . | . . . . Protection 1 | . . 1 . Artifact . | . . . . Weapon 14 | 2 1 11 . Energy Gun 3 | 1 . 2 . Energy Cannon 3 | . . 3 . Ballistic Gun 5 | 1 . 4 . Ballistic Cannon . | . . . . Launcher 3 | . 1 2 . Special Weapon . | . . . . Impact Weapon . | . . . . Slashing Weapon . | . . . . Piercing Weapon . | . . . . Special Melee Weapon . | . . . . Unidentified Prototypes 4 | . . 4 . Parts Lost 10 | . . 6 4 Power 2 | . . 1 1 Propulsion 5 | . . 3 2 Utility 1 | . . 1 . Weapon 2 | . . 1 1 Highest Loss Streak 4 | . . 4 4 To Critical Strikes . | . . . . Average Backups 6 | . 3 7 7 Power 1 | . 1 1 1 Propulsion . | . . . 1 Utility 1 | . . 1 2 Weapon 3 | . 2 3 1 Tool/Special . | . . . . Unused Backups 5 | . . 3 2 Power . | . . . . Propulsion . | . . . . Utility 2 | . . 1 1 Weapon 3 | . . 2 1 Tool/Special . | . . . . Average Slot Usage (%) 89 | . 85 87 100 Engine 20 | . 14 20 22 Leg 26 | . 28 24 33 Device 5 | . . 4 11 Storage 11 | . 14 11 11 Protection 3 | . . 4 . Energy Gun 3 | . 7 3 . Energy Cannon 4 | . . 3 11 Ballistic Gun 12 | . 14 13 11 Launcher 2 | . 7 1 . Peak Build Rating 16 | 6 6 16 16 Average Rating 11 | 4 6 12 15 On Entrance 7 | . 6 6 16 Avg Prop Armor Cover (%) . | . . . . Naked Turns . | . . . . Heaviest Build 27 | 14 15 27 24 Greatest Support 36 | 20 20 36 36 Greatest Overweight (x) 4 | 4 . 2 . Average Overweight (x) . | . . . . Largest Inventory Capacity 8 | 8 8 8 8 Average Capacity 7 | 7 8 8 8 Most Carried 8 | 1 6 8 8 Average Carried 6 | . 3 7 7 Final Capacity 8 | 8 8 8 8 Final Carried 8 | 1 6 8 5 Class Distribution -------------------- 50% | Scavenger-Mutant 49% | Mutant Dominant Class ---------------- Mutant | -10/Materials Scavenger-Mutant | -9/Materials Scavenger-Mutant | -9/Storage Resources | -11 -10 -9 -9 ----------- Run | Yrd Mat Mat Sto Matter Collected 814 | 201 16 597 . Remotely . | . . . . Salvage Created 686 | . 16 670 . Parts 52 | . 1 51 . Haulers Intercepted 3 | . . 3 . Recyclers Shooed 4 | . . 4 . Parts Field Recycled . | . . . . Retrieved Matter . | . . . . Parts Self-Destructed . | . . . . Prevented . | . . . . Parts Restored . | . . . . Kills | -11 -10 -9 -9 ------- Run | Yrd Mat Mat Sto Combat Hostiles Destroyed 16 | . . 16 . Guns 9 | . . 9 . Cannons 3 | . . 3 . AOE 4 | . . 4 . Classes Destroyed 7 | . 1 6 . Hauler 3 | . . 3 . Watcher 2 | . 1 1 . Swarmer 3 | . . 3 . Grunt 8 | . . 8 . Brawler 1 | . . 1 . Duelist 1 | . . 1 . Sentry 3 | . . 3 . Best Kill Streak 4 | . 1 4 . Combat Bots Only 4 | . . 4 . Max Kills in Single Turn 2 | . 1 2 . Gunslinging . | . . . . Exploded 2 | . . 2 . Melee . | . . . . Uniques/NPCs Destroyed . | . . . . Combat | -11 -10 -9 -9 -------- Run | Yrd Mat Mat Sto Hostile Shots Fired 164 | . . 98 66 Missed 50 | . . 28 22 Hits 114 | . . 70 44 Melee 6 | . . 6 . Projectile 108 | . . 64 44 AOE 1 | . . . 1 Critical Strikes 6 | . . 4 2 Damage Taken 1730 | . . 1043 687 Core 402 | . . 195 207 Absorbed by Shields . | . . . . Core Remaining (%) 100 | 100 100 . . Volleys Fired 65 | . 1 56 8 Largest 2 | . 2 2 2 Hottest 124 | . 50 124 91 Shots Fired 125 | . 2 107 16 Gun 92 | . 1 83 8 Cannon 22 | . . 14 8 Launcher 11 | . 1 10 . Special . | . . . . Kinetic 70 | . 1 61 8 Thermal 44 | . . 36 8 Explosive 11 | . 1 10 . Electromagnetic . | . . . . Robot Hit Streak 19 | . 1 19 7 Robot Miss Streak 3 | . . 3 2 Penetration Max . | . . . . Secondary Targets . | . . . . Shots Hit Robots 89 | . 1 75 13 Core Hits 37 | . 1 35 1 Critical Kills . | . . . . Critical Parts Destroyed . | . . . . Critical Strikes . | . . . . Melee Attacks . | . . . . Impact . | . . . . Slashing . | . . . . Piercing . | . . . . Sneak Attacks . | . . . . Combat Hostiles . | . . . . Follow-up Attacks . | . . . . Damage Inflicted 1898 | . 34 1634 230 Guns 961 | . . 855 106 Cannons 350 | . . 226 124 Explosions 560 | . 34 526 . Melee . | . . . . Ramming 27 | . . 27 . Kinetic 715 | . . 609 106 Thermal 596 | . . 472 124 Explosive 560 | . 34 526 . Electromagnetic . | . . . . Impact . | . . . . Slashing . | . . . . Piercing . | . . . . Highest Corruption . | . . . . Average Corruption . | . . . . Corruption Purged . | . . . . Corruption Blocked . | . . . . Overload Shots . | . . . . Overflow Damage . | . . . . Projectiles . | . . . . Explosions . | . . . . Melee . | . . . . Knockbacks . | . . . . Impact . | . . . . Kinetic . | . . . . Secondary . | . . . . Self-Inflicted Damage 87 | . . 87 . Shots 4 | . . 4 . Rammed . | . . . . Targets Rammed 9 | . . 9 . Kicked 9 | . . 9 . Crushed . | . . . . Highest Temperature 309 | . . 273 309 Average Temperature 99 | . . 91 135 Received Heat Transfer 618 | . . 339 279 Effects 2 | . . 1 1 Energy Bleed 1 | . . . 1 Interference 1 | . . 1 . Siege Activations . | . . . . Martial Activations . | . . . . Shielding Activations . | . . . . Robots Disrupted . | . . . . Combat Hostiles . | . . . . Robots Corrupted . | . . . . Combat Hostiles . | . . . . Parts Fried . | . . . . Impact Corruptions . | . . . . Robots Melted . | . . . . Combat Hostiles . | . . . . Parts Melted . | . . . . Heat Transferred 1258 | . . 1036 222 Parts Sabotaged . | . . . . Parts Stolen . | . . . . Parts Stripped . | . . . . Power Chain Reactions . | . . . . Alert | -11 -10 -9 -9 ------- Run | Yrd Mat Mat Sto Maximum Alert Level . | . . . . Low Security (%) 100 | 100 100 100 100 Level 1 . | . . . . Level 2 . | . . . . Level 3 . | . . . . Level 4 . | . . . . Level 5 . | . . . . High Security . | . . . . Max Security . | . . . . Peak Influence 174 | . 12 174 70 Initial 70 | . . . 70 Average 63 | . 1 74 48 Influence Increases 530 | . 12 503 15 Destroy 0b10 Robot/C 320 | . . 320 . Destroy 0b10 Robot/NC 25 | . 5 20 . Destroy Leader 100 | . 2 98 . Successful Hack 8 | . . 8 . Disable Machine 15 | . . 15 . Destroy Structure 47 | . 5 42 . Lose Combat Pursuer 15 | . . . 15 Influence Decreases 530 | . 12 335 183 Entered New Map 98 | . . . 98 Time Decay 342 | . 12 275 55 Lost Part 90 | . . 60 30 Squads Dispatched 2 | . . 2 . Investigation . | . . . . Extermination . | . . . . Reinforcement 2 | . . 2 . Assault . | . . . . Garrison . | . . . . Intercept . | . . . . Searches Triggered . | . . . . Construction Impeded . | . . . . Haulers Reinforced . | . . . . Active Scanning Responses . | . . . . Cargo Convoy Interrupts . | . . . . Stealth | -11 -10 -9 -9 --------- Run | Yrd Mat Mat Sto Distress Signals 2 | . . 1 1 Communications Jammed . | . . . . Distress Signals . | . . . . Times Spotted 34 | . 1 24 9 Peak Tracking Total 8 | . 1 7 8 Tactical Retreats 1 | . . . 1 Traps | -11 -10 -9 -9 ------- Run | Yrd Mat Mat Sto Traps Triggered . | . . . . Indirectly . | . . . . Trap Hack Attempts . | . . . . Triggered . | . . . . Disarmed . | . . . . Reprogrammed . | . . . . Reused . | . . . . Traps Extracted . | . . . . Installed . | . . . . Triggered . | . . . . Machines | -11 -10 -9 -9 ---------- Run | Yrd Mat Mat Sto Machines Disabled 1 | . . 1 . Max in Single Turn 1 | . . 1 . Machines Repaired . | . . . . Machines Dismantled . | . . . . Machines Sabotaged . | . . . . Overloaded Fab Kills . | . . . . Hacking | -11 -10 -9 -9 --------- Run | Yrd Mat Mat Sto Machines Accessed 2 | . . 1 1 Terminals 2 | . . 1 1 Fabricators . | . . . . Repair Stations . | . . . . Recycling Units . | . . . . Scanalyzers . | . . . . Garrison Access . | . . . . Total Hacks 2 | . . 1 1 Successful 2 | . . 1 1 Failed . | . . . . Catastrophic . | . . . . Database Lockouts . | . . . . Manual 2 | . . 1 1 Terminals 2 | . . 1 1 Fabricators . | . . . . Repair Stations . | . . . . Recycling Units . | . . . . Scanalyzers . | . . . . Garrison Access . | . . . . Terminal Hacks 2 | . . 1 1 Branch Access Points 2 | . . 1 1 Fabricator Hacks . | . . . . Repair Station Hacks . | . . . . Recycling Unit Hacks . | . . . . Scanalyzer . | . . . . Garrison Access Hacks . | . . . . Unauthorized Hacks . | . . . . Terminals . | . . . . Fabricators . | . . . . Repair Stations . | . . . . Recycling Units . | . . . . Scanalyzers . | . . . . Garrison Access . | . . . . Data Cores Recovered . | . . . . Used . | . . . . Hacking Detections . | . . . . Full Trace Events . | . . . . Feedback Events . | . . . . Feedback Blocked . | . . . . Robot Schematics Acquired . | . . . . Robots Built . | . . . . Authchips . | . . . . Time . | . . . . Total Robot Build Rating . | . . . . Part Schematics Acquired . | . . . . Parts Built . | . . . . Authchips . | . . . . Time . | . . . . Total Part Build Rating . | . . . . Part Studies Acquired . | . . . . Parts Repaired . | . . . . Time . | . . . . Parts Recycled . | . . . . Recycled Matter . | . . . . Retrieved Matter . | . . . . Retrieved Components . | . . . . Parts Scanalyzed . | . . . . Part Schematics Acquired . | . . . . Parts Damaged . | . . . . Bothacking | -11 -10 -9 -9 ------------ Run | Yrd Mat Mat Sto Used RIF Installer . | . . . . Robots Hacked . | . . . . Non-combat . | . . . . Combat . | . . . . Robot Hacks Applied . | . . . . Relay Couplers Released . | . . . . Fabnet Peak Effective % . | . . . . Robots Rewired . | . . . . Allies Hacked . | . . . . Hacks Repelled . | . . . . Allies | -11 -10 -9 -9 -------- Run | Yrd Mat Mat Sto Total Allies . | . . . . Largest Group . | . . . . Highest-Rated Group . | . . . . Highest-Rated Ally . | . . . . Total Orders . | . . . . Ally Attacks . | . . . . Total Damage . | . . . . Kills . | . . . . Allies Corrupted . | . . . . Allies Melted . | . . . . Intel | -11 -10 -9 -9 ------- Run | Yrd Mat Mat Sto Active Infowar (turns) . | . . . . Robot Analysis Total . | . . . . Derelict Logs Recovered . | . . . . Drone Launches . | . . . . Drone Recoveries . | . . . . Exploration | -11 -10 -9 -9 ------------- Run | Yrd Mat Mat Sto Turns Passed 1044 | 55 65 804 120 Spaces Moved 552 | 35 47 392 78 Core 14 | 10 . 4 . Treads . | . . . . Legs 538 | 25 47 388 78 Wheels . | . . . . Hover . | . . . . Flight . | . . . . Fastest Speed 50 | 50 120 120 120 Average Speed 134 | 131 120 139 120 Slowest Speed 250 | 250 120 190 120 Overloaded Moves . | . . . . Propulsion Burnouts . | . . . . Robots Hopped . | . . . . Potential Cave-ins . | . . . . Cave-ins Triggered . | . . . . Exploration Rate (%) 17 | 3 16 36 15 Regions Visited 3 Branch Regions 1 Pre-discovered Areas . | . . . . Known Exits Taken 1 | . . 1 . Unknown Exits Taken 2 | 1 1 . . Scrap Searched . | . . . . Spaces Dug . | . . . . Terrain Destroyed 59 | . 5 54 . Melee . | . . . . Projectile . | . . . . AOE 59 | . 5 54 . Terrain Rammed . | . . . . Walls Destroyed . | . . . . Machines Disabled . | . . . . Actions | -11 -10 -9 -9 --------- Run | Yrd Mat Mat Sto Total 718 | 41 53 535 89 Wait 11 | . . 11 . Move 549 | 34 46 391 78 Hop . | . . . . Pick Up 28 | 1 5 22 . Fast Attach 13 | 6 . 7 . Attach 8 | . . 5 3 Detach . | . . . . Swap 19 | . 1 18 . Drop 16 | . . 16 . Fire 65 | . 1 56 8 Melee . | . . . . Ram . | . . . . Kick 9 | . . 9 . Crush . | . . . . Escape Stasis . | . . . . Rewire . | . . . . Trap . | . . . . Miscellaneous . | . . . . Route ------- -11/Scrapyard -10/Materials -9/Materials (discovered 3 exits: *Min x2 / *Sto) -9/Storage (discovered 1 exit: Rec) History --------- Turn | Location | Event 8 | -11/Scrapyard | Discovered new exit (range 15) 56 | -11/Scrapyard | Entered Materials 79 | -10/Materials | Discovered new exit (range 16) 121 | -10/Materials | Entered another Materials area 121 | -9/Materials | Evolved 2 slots: Power x1, Propulsion x1 652 | -9/Materials | Discovered new exit (range 14) 722 | -9/Materials | Lost 4 parts (1p2n1w) 848 | -9/Materials | Identified exit to Mines 848 | -9/Materials | Identified exit to Storage 925 | -9/Materials | Entered Storage 929 | -9/Storage | Identified exit to Recycling 976 | -9/Storage | Core integrity fell below 50% 1024 | -9/Storage | Core integrity fell below 20% 1045 | -9/Storage | Destroyed by Y-45 Defender with Heavy Assault Rifle Last Messages --------------- 00982_ U-05 Engineer lays Concrete. 00989_ U-05 Engineer builds a Wall. 00990_ U-05 Engineer lays Concrete. 00994_ The unstable cave ceiling collapses. 00994_ C-30 ARC bursts open, deploying its payload. 00994_ G-47 Trooper unfolds itself. 00994_ G-34 Mercenary unfolds itself. 00994_ U-05 Engineer lays Concrete. 00994_ U-05 Engineer builds a Door. 00995_ U-05 Engineer lays Concrete. 00996_ Overheating: Energy bleed (-91). 00996_ U-05 Engineer lays Concrete. 01030_ Ion Engine destroyed. 01033_ Critical hit (Burn: +37). 01034_ M-13 Machinist repairs G-34 Mercenary. 01036_ Critical hit (Burn: +37). 01040_ Aluminum Leg destroyed. 01041_ O-16 Technician: "IFF HANDSHAKE FAILED. SECURING TERMINAL." 01042_ Imp. Assault Rifle destroyed. 01045_ Aluminum Leg destroyed. Map ----- +----------------------------------------------------+ | ?????????????# #???????? | | ???????####### #???????? | | ???????# / """"" ######??? | | ???????# ##### "???????# #??? | | ???????# #???# ""??????# #??? | | ????#### ##??# "??????# ##?? | | ???## # #### "?????## "#?? | | ??## # """"" ## T#?? | | ??# # ## "#?? | | ??###% #+###+##### ##?? | | ?? "+" # #??? | | ?###" / #??? | | ???# # m #??? | | ???# ######"T"## ###? | | ???## " #????###### ""#? | | ????# #?????????#YggY"#? | | ????# ########?????????# ""#? | | ????##?????????????????# ###? | | ???????????????????????# Y #??? | | ???????????????????????# #??? | | ???????????????????????#Ya #??? | | ???????????????????????# #??? | | ???????????????????????# #??? | | ???????????????????????# #??? | | ???????????????????????# #??? | | ???????????????????????# @ #??? | | ???????????????????????# k #??? | | ???????????????????????#gg #??? | | ???????????????????????#a #??? | | ???????????????????????#a #??? | | ??????????????????????? #??? | | ??????????????????????? #??? | | ?????????????????????? #??? | | ??????????????????????## #??? | | ???????????????????????# #??? | | ???????????????????????#^ #??? | | ???????????????????????# #??? | | ???????????????????????# #??? | | ???????????????????????? #??? | | ???????????????????????? ???? | | ???????????????????????? ???? | | ??????????????????????????????? | | ??????????????????????????????? | | ??????????????????????????????? | | ??????????????????????????????? | | ??????????????????????????????? | | ??????????????????????????????? | | ??????????????????????????????? | | ??????????????????????????????? | | ??????????????????????????????? | +----------------------------------------------------+ Best States ------------- Heat Dissipation 38 Energy Generation 17 Energy Capacity 415 Matter Stores 300 Matter Capacity 300 Sight Range 16 Terrain Scan Density 10 Additional Mass Support 6 Armor Coverage 150 Evasion (%) 55 Item Schematics ----------------- None Robot Schematics ------------------ None Fabricated ------------ Nothing Repaired ---------- Nothing Studied --------- None Alien Tech Used ----------------- None Achievements -------------- None Challenges ------------ None Game ------ Seed NodeLaunchRedirector Manual? 0 Play Time 00:26:19 Cumulative 24.1 hours Start 2026.02.03 @ 09:43:40 End 2026.02.03 @ 11:03:29 Sessions 1 Manual Loads 0 Difficulty Rogue Special Mode None Game No. 32 Rogue 32 Adventurer 0 Explorer 0 Win Type - Total 0 Types 0/0/0/0/0/0/0/0/0/0 Lore% 7 Gallery% 24 Achievement% 17 Wizard Run 0 Options --------- Layout 0 ASCII 0 Keyboard 1 Movement Vi Keybinds 0 Fullscreen 1 Font 18/X11 Map View 38x25 Zoom Use 98% Tactical HUD 1 Map Filters NONE Filters NONE Steam 1 RUN: f1583ea2-cdc6-4507-beed-188f9c10f8d1